[Event "MPL 41st IND-ch Teams 2022"]
[Site "Jalgaon"]
[Date "2022.04.12"]
[Round "8.4"]
[White "Visakh N R"]
[Black "Swati Ghate"]
[Result "1-0"]
[ECO "D45"]
[WhiteElo "2522"]
[BlackElo "2136"]
[Annotator "TA"]
[PlyCount "142"]
[EventDate "2022.04.08"]
[EventType "team-tourn"]
[EventCountry "IND"]
[SourceTitle "playchess.com"]
[Source "ChessBase"]
[SourceQuality "1"]
[TimeControl "5400+30"]

{[%evp 12,142,11,10,19,16,12,15,20,16,21,25,34,14,45,34,42,38,38,34,175,177,183,179,177,168,165,171,145,157,266,278,310,243,241,240,280,134,136,145,185,72,85,64,74,24,30,27,53,27,39,30,86,82,87,70,107,107,103,107,94,90,107,107,107,90,94,3,200,239,226,48,77,67,76,48,48,48,48,48,48,48,125,124,116,123,124,123,124,123,116,117,117,133,132,127,131,26,26,26,26,0,0,0,0,0,0,0,0,0,0,0,0,0,0,0,0,0,0,0,0,0,281,273,273,223,59,59,5072,5072,5065,5065,5085]} 1. d4 {[%emt 0:00:04]} d5 2. c4 {[%emt 0:00:02]} c6 {[%emt 0:00:43]} 3. Nc3 {[%emt 0:00:16]} Nf6 {[%emt 0:00:07]} 4. e3 {[%emt 0:00:04]} e6 {[%emt 0:00:18]} 5. Nf3 {[%emt 0:00:10]} Nbd7 {[%emt 0:00:12]} 6. Qc2 {[%emt 0:00:06]} Bd6 {[%emt 0:01:48]} 7. b3 {[%emt 0:00:06]} b6 {[%emt 0:00:50] D45: Semi-Slav: 5 e3.} 8. Bb2 {[%emt 0:00:03]} Bb7 {[%emt 0:00:08]} 9. Bd3 $1 {[%emt 0:01:40] The main line 9.Bd3 scores better than 9.Be2.} Rc8 {[%emt 0:04:25] The position is equal.} 10. O-O {[%emt 0:02:14]} (10. Rd1 {is more complex.} c5 11. cxd5 cxd4 12. dxe6 dxc3 13. exd7+ Qxd7 14. Bf5) 10... O-O {[%emt 0:02:35]} 11. Rad1 {[%emt 0:00:43]} Qe7 {[%emt 0:07:44]} 12. Rfe1 {[%emt 0:17:09]} Rfe8 {[%emt 0:02:44]} 13. e4 {[%emt 0:16:55] [#]} dxc4 $146 {[%emt 0:02:23]} ({Predecessor:} 13... dxe4 14. Nxe4 Nxe4 15. Bxe4 Nf8 16. Ne5 Bxe5 17. dxe5 Red8 18. c5 Rc7 19. Rd6 Rcd7 {1-0 (30) Simantsev,M (2473)-Dauth,B (2349) Pardubice 2013}) 14. bxc4 {[%emt 0:06:56]} e5 {[%emt 0:00:15]} 15. Ne2 {[%emt 0:00:02]} c5 {[%emt 0:16:31]} (15... g6 $14) 16. dxe5 $1 $18 {[%emt 0:02:55]} (16. d5 $6 Red8 $16) 16... Nxe5 {[%emt 0:00:18]} 17. Nxe5 {[%emt 0:00:05]} Bxe5 {[%emt 0:00:11]} 18. Bxe5 {[%emt 0:04:18]} Qxe5 {[%emt 0:00:02]} 19. f4 {[%emt 0:00:54]} Qh5 {[%emt 0:00:56]} 20. Nc3 $1 {[%emt 0:01:15]} (20. Ng3 $6 Qh4 $11) 20... Bc6 {[%emt 0:09:30]} (20... Qh6 $16) 21. e5 $1 {[%emt 0:01:13]} Nd7 {[%emt 0:00:05]} 22. Re3 {[%emt 0:02:58][%cal Be1e3,Be3d3,Bd3d6][%mdl 32]} Qh4 {[%emt 0:05:27]} 23. g3 {[%emt 0:14:25]} Qh6 {[%emt 0:03:11]} 24. Qe2 {[%emt 0:04:40]} (24. Bf5 $1 $18 {[%cal Rf5d7]} Rcd8 25. Red3 Nxe5 26. fxe5 (26. Rxd8 $2 {too greedy.} Nf3+ 27. Kh1 Nd4+ 28. Kg1 Nxc2 $19)) 24... Nf8 $16 {[%emt 0:01:49]} 25. Bf5 {[%emt 0:01:27]} Ne6 {[%emt 0:01:37]} 26. Bxe6 {[%emt 0:00:53]} (26. Rd6 $1 $18 {and the rest is easy.}) 26... fxe6 {[%emt 0:00:35]} 27. Red3 {[%emt 0:04:13]} (27. Qg4 {looks sharper.} Kf7 28. Red3 Qg6 29. Qxg6+ Kxg6 30. Kf2) 27... Qg6 {[%emt 0:01:43]} 28. Nb5 {[%emt 0:02:42]} (28. h4 $16) 28... Bxb5 $11 {[%emt 0:14:49]} 29. cxb5 {[%emt 0:00:02]} h5 {[%emt 0:00:21]} 30. Rd6 {[%emt 0:03:28]} (30. Rd7 {seems wilder.} h4 31. Kg2 Rf8 32. Qc4) 30... Re7 {[%emt 0:03:29]} 31. Qd3 {[%emt 0:00:43]} (31. Kg2 {with more complications.} h4 32. Qd3 Qh5 33. Qf3) 31... Qxd3 {[%emt 0:10:02]} (31... Qg4 $1 $11 {remains equal.}) 32. R1xd3 {[%emt 0:00:02][%mdl 4096] Endgame KRR-KRR} Kf7 {[%emt 0:00:06]} 33. Kf2 {[%emt 0:00:04]} c4 {[%emt 0:02:40]} 34. Rc3 {[%emt 0:00:03]} Rc5 {[%emt 0:00:05]} 35. a4 {[%emt 0:00:17]} Rec7 {[%emt 0:00:16]} 36. Ke3 {[%emt 0:00:19]} g6 {[%emt 0:01:28]} 37. Ke4 {[%emt 0:00:09] Against Rd5} Ke7 {[%emt 0:00:18]} 38. h3 {[%emt 0:00:11] &Bianco is more active.} Rc8 {[%emt 0:00:17]} 39. g4 (39. Rd2 $16) 39... h4 $2 {[%emt 0:04:24]} (39... g5 $1 $11 {and Black stays safe.}) 40. Rd4 $18 {[%emt 0:01:23]} R5c7 {[%emt 0:00:49]} 41. f5 $2 {[%emt 0:04:11]} (41. Ke3 $18) 41... gxf5+ $14 42. gxf5 exf5+ {[%emt 0:00:45]} 43. Kxf5 {[%emt 0:00:07]} Rf8+ 44. Ke4 $1 {[%emt 0:00:01]} Rfc8 {[%emt 0:01:01]} 45. Rd6 {[%emt 0:00:27]} Rc5 $1 {[%emt 0:03:11]} 46. Rh6 {[%emt 0:06:21]} Rf8 {[%emt 0:00:43]} (46... Rd8 $14) 47. Rxh4 $16 {[%emt 0:01:47]} Rf1 {[%emt 0:00:04]} 48. Rh7+ {[%emt 0:00:41]} Ke6 {[%emt 0:00:01]} 49. Rh6+ {[%emt 0:00:07]} (49. Rxa7 $2 {is a self mate.} Rxe5+ 50. Kd4 Rf4#) 49... Ke7 {[%emt 0:00:05]} 50. Rc6 $1 {[%emt 0:00:24]} Re1+ {[%emt 0:00:24]} 51. Kf4 $1 {[%emt 0:00:13]} Rexe5 {[%emt 0:01:37]} 52. Rxc4 {[%emt 0:00:09] Intending R6xc5 and mate.} Rf5+ {[%emt 0:01:14]} 53. Kg3 {[%emt 0:00:13] Strongly threatening R4xc5.} Rg5+ {[%emt 0:00:52]} 54. Rg4 {[%emt 0:00:46]} ({White should try} 54. Kf3 $16) 54... Rxc6 $11 {[%emt 0:01:12]} 55. Rxg5 {[%emt 0:00:09] KR-KR} Rc3+ {[%emt 0:00:18]} 56. Kh4 {[%emt 0:00:02]} Kf6 {[%emt 0:00:15] Prevents Rg7.} 57. Rg4 {[%emt 0:00:03]} Ra3 {[%emt 0:00:25]} 58. Rc4 {[%emt 0:00:34]} Kf5 {[%emt 0:00:17]} 59. Rg4 {[%emt 0:00:27]} Rc3 {[%emt 0:00:20]} 60. Rg5+ {[%emt 0:00:13]} Kf6 {[%emt 0:00:02]} 61. Rg3 {[%emt 0:00:09]} Rc4+ $1 {[%emt 0:00:36]} 62. Rg4 {[%emt 0:00:02]} Rc3 {[%emt 0:00:19]} 63. Rf4+ {[%emt 0:00:41]} Ke5 {[%emt 0:01:09]} 64. Rf7 {[%emt 0:07:04]} Rc4+ {[%emt 0:00:34]} 65. Kg5 {[%emt 0:00:01]} Rxa4 {[%emt 0:00:07]} 66. h4 {[%emt 0:00:03][%cal Bh3h4,Bh4h5][%mdl 32] And now Rf5+ would win.} Ke6 $2 {[%emt 0:01:09][%mdl 8192] [#]} (66... a6 $11) 67. Rf6+ $1 $18 {[%emt 0:00:21]} Ke7 {[%emt 0:00:59][%cal Oa4h4] ...Rxh4! is the strong threat.} 68. h5 {[%emt 0:00:01]} Ra1 {[%emt 0:00:55] ( -> ...Rg1+)} 69. Rf5 {[%emt 0:00:28] Black must now prevent h6.} Ke6 $2 {[%emt 0:00:15][%mdl 8192] [#]} (69... Rg1+ $14 70. Kh6 Ke6) 70. Kg6 $1 {[%emt 0:00:05] Hoping for h6.} ({Less strong is} 70. Rf6+ Ke7 71. Rf5 Rg1+ 72. Kh6 Ke6 $16) 70... Rh1 {[%emt 0:00:15]} 71. Rg5 {[%emt 0:00:12]} Ke7 {[%emt 0:00:24] Weighted Error Value: White=0.21 (precise) /Black=0.21 (precise)} 1-0

[Event "MPL 41st IND-ch Teams 2022"]
[Site "Jalgaon"]
[Date "2022.04.12"]
[Round "8.5"]
[White "Puranik, Abhimanyu"]
[Black "Vipul Subhashi"]
[Result "1-0"]
[ECO "C65"]
[WhiteElo "2618"]
[BlackElo "2097"]
[Annotator "TA"]
[PlyCount "59"]
[EventDate "2022.04.08"]
[EventType "team-tourn"]
[EventCountry "IND"]
[SourceTitle "playchess.com"]
[Source "ChessBase"]
[SourceQuality "1"]
[TimeControl "5400+30"]

{[%evp 9,59,15,16,18,13,5,18,0,6,0,0,0,0,4,31,7,16,16,17,16,23,0,0,0,117,100,86,79,141,176,262,269,543,533,1180,1051,1047,1023,1169,1162,1079,1079,1015,824,818,810,807,785,1015,995,983,960]} 1. e4 {[%emt 0:00:06]} e5 {[%emt 0:03:35]} 2. Nf3 {[%emt 0:00:13]} Nc6 {[%emt 0:00:08]} 3. Bb5 {[%emt 0:00:07]} Nf6 {[%emt 0:00:07]} 4. d3 {[%emt 0:00:07]} Bc5 {[%emt 0:01:41]} 5. Bxc6 {[%emt 0:00:08]} dxc6 {[%emt 0:00:36]} 6. Nbd2 {[%emt 0:00:09] C65: Ruy Lopez: Berlin Defence (3...Nf6), unusual lines and 4 0-0 Bc5.} O-O 7. Nc4 {[%emt 0:03:47]} Nd7 {[%emt 0:08:10]} 8. Qe2 {[%emt 0:01:09] The position is equal.} Re8 {[%emt 0:01:12]} 9. Bd2 {[%emt 0:02:19]} f6 {[%emt 0:02:51]} 10. Rg1 $5 {[%emt 0:08:15][%mdl 4] An interesting side line.} Nf8 {[%emt 0:03:53]} 11. g4 {[%emt 0:00:08][%cal Bg2g4,Bg4g5][%mdl 32]} Ne6 {[%emt 0:02:22] [#]} 12. g5 $146 {[%emt 0:05:12]} ({Predecessor:} 12. O-O-O b5 13. Ne3 Nf4 14. Qf1 Bf8 15. Nf5 c5 16. d4 exd4 17. Bxf4 Rxe4 18. Bd2 {0-1 (38) Chigaev,M (2566)-Pridorozhni,A (2565) Khanty-Mansiysk 2017}) 12... b5 {[%emt 0:02:13]} 13. Na5 {[%emt 0:02:04][%cal Bc4a5,Ba5b3,Bb3d4][%mdl 32]} Nf4 {[%emt 0:01:45]} (13... Bd7 14. Nb7 Qe7 15. Nxc5 Nxc5 16. gxf6 Qxf6 17. Qe3 $16) 14. Bxf4 {[%emt 0:02:05]} exf4 {[%emt 0:00:03]} 15. gxf6 {[%emt 0:04:12]} ({Don't play} 15. Nxc6 Qd6 16. gxf6 Qxf6 $15) 15... Qxf6 {[%emt 0:01:31] [#] Hoping for ...Bb4+.} 16. O-O-O {[%emt 0:00:07]} Bb4 {[%emt 0:04:43]} (16... Bb6 $11 17. Nb3 a5) 17. Nb3 {[%emt 0:01:13] Pair of Knights!} a5 {[%emt 0:00:40]} 18. e5 {[%emt 0:01:38][%cal Be4e5,Be5e6][%mdl 32]} Qf8 {[%emt 0:01:08]} (18... Qf7 $142) 19. Nbd4 $16 {[%emt 0:03:17]} Bd7 {[%emt 0:08:41]} (19... Bc5 $142 20. Qe4 (20. Nxc6 Bb7 $16) 20... Bxd4 21. Nxd4 Ra6) 20. Qe4 $18 {[%emt 0:04:55] aiming for Ng5.} h6 {[%emt 0:01:16] Against Ng5} (20... Qf7 21. Ng5 (21. Nxc6 Qf5 $16) 21... Qg6 22. Qxf4 Rf8) 21. e6 {[%emt 0:06:38] Threatens to win with Rg6. White is clearly winning.} Ra6 {[%emt 0:13:08]} 22. Rg6 {[%emt 0:06:29] Rdg1 would kill now.} c5 {[%emt 0:03:23] [#]} 23. Rdg1 $1 {[%emt 0:03:04]} cxd4 {[%emt 0:02:39]} (23... Raxe6 24. Nxe6) 24. Rxg7+ {[%emt 0:00:31]} Qxg7 {[%emt 0:00:03]} 25. Rxg7+ {[%emt 0:00:04]} Kxg7 {[%emt 0:00:10]} 26. Qxd4+ {[%emt 0:00:04]} Kg8 {[%emt 0:03:14]} 27. exd7 {[%emt 0:00:10]} Rd8 {[%emt 0:00:26]} 28. Qe4 {[%emt 0:07:18]} Bf8 {[%emt 0:04:58]} 29. Qe8 {[%emt 0:00:33]} Raa8 {[%emt 0:00:07]} 30. Qe6+ {[%emt 0:00:05] Weighted Error Value: White=0.08 (flawless) /Black=0.38} 1-0

[Event "MPL 41st IND-ch Teams 2022"]
[Site "Jalgaon"]
[Date "2022.04.12"]
[Round "8.7"]
[White "Sankalp Gupta"]
[Black "Rahul Kumar, Pune"]
[Result "1-0"]
[ECO "C70"]
[WhiteElo "2536"]
[BlackElo "2184"]
[Annotator "TA"]
[PlyCount "89"]
[EventDate "2022.04.08"]
[EventType "team-tourn"]
[EventCountry "IND"]
[SourceTitle "playchess.com"]
[Source "ChessBase"]
[SourceQuality "1"]
[TimeControl "5400+30"]

{[%evp 9,89,36,24,33,34,24,47,57,65,61,64,65,72,68,77,77,65,14,6,-10,-1,-12,-8,-13,-16,-22,-17,-33,-41,-28,62,43,43,51,56,54,54,55,226,201,170,114,140,107,126,118,189,179,197,106,109,109,106,92,102,104,78,0,194,194,232,220,256,227,382,335,343,340,731,720,628,526,512,512,487,478,29986,29987,29987,29988,29992,29993]} 1. e4 e5 2. Nf3 Nc6 3. Bb5 a6 4. Ba4 Nge7 5. c3 {[%cal Bc2c3,Bc3d4,Bd4d5][%mdl 32]} g6 6. d4 {C70: Ruy Lopez: 3...a6 4 Ba4, Norwegian and Delayed Schliemann.} exd4 7. cxd4 b5 8. Bc2 {White is slightly better.} Bg7 9. d5 Na5 10. Bd2 Nc4 11. Bc3 Bxc3+ 12. Nxc3 d6 13. Qd4 (13. Bb3 $14) 13... O-O $11 14. b3 {[#]} c5 $1 {[%cal Bc7c5,Bc5d4][%mdl 32]} 15. Qf6 (15. Qd3 Na3) 15... Na3 16. Bd1 {[#]} Nc6 $1 17. Qf4 (17. Qxd8 Nxd8) 17... Nd4 18. Nxd4 cxd4 19. Ne2 Qa5+ (19... d3 $11 20. Ng3 (20. Nd4 f5 $11) 20... b4) 20. Qd2 $14 Qxd2+ 21. Kxd2 f5 22. Nxd4 fxe4 {[#]} 23. f3 $146 ({Predecessor:} 23. Ke3 Bb7 24. Nc6 Rae8 25. g4 Bxc6 26. dxc6 b4 27. g5 Rf5 28. Rc1 Rxg5 29. h4 {1-0 (62) Tsolakidou,S (2240)-Stojanovic,A (2297) Tromsoe 2014}) 23... Bb7 $2 (23... exf3 $14 24. Bxf3 Bd7) 24. fxe4 $18 Rf2+ 25. Kc3 ({Better is} 25. Be2 $18) 25... a5 $16 (25... Rxg2 $2 26. Kb4 $18) 26. Bf3 {Strongly threatening Rhc1.} Rc8+ 27. Kd3 {Ne2 is the strong threat.} Nc2 (27... b4 $16 28. Rhc1 Nc2 29. Rxc2 Rcxc2 30. Nxc2 Ba6+ 31. Ke3 Rxc2) 28. Rac1 $18 b4 {[%csl Gb4][%cal Rc8c3]} 29. Rxc2 (29. e5 $1 $18 {[%cal Re5d6]}) 29... Rcxc2 $16 30. Nxc2 {Black must now prevent Rc1.} Ba6+ 31. Kd4 Rd2+ 32. Ke3 Rxc2 {[%mdl 4096] Endgame KRB-KRB} 33. Ra1 (33. Re1 $16) 33... Bb5 $2 (33... Kf7 $11 {and Black stays safe.}) 34. Kf4 $1 $18 Kf7 {[#]} 35. e5 dxe5+ 36. Kxe5 Ke7 $2 {[#]} (36... Rc3 {might work better.} 37. Kd4 Ke8 38. Re1+ Kd8) 37. a3 $1 bxa3 38. Rxa3 Rc3 $2 (38... Be2 39. Be4 Rc5) 39. d6+ Kd7 40. Rxa5 Re3+ 41. Kd4 ({And not} 41. Be4 Bc6 42. Ra7+ Kd8 43. Rxh7 Rxe4+ 44. Kf6 Rb4 $11) 41... Rxb3 42. Kc5 {Ra7+ would kill now.} Bd3 (42... Rc3+ $18 43. Kxb5 Kxd6) 43. Bc6+ {White mates.} Ke6 44. Bd5+ Kd7 45. Bxb3 {Weighted Error Value: White=0.15 (very precise) /Black=0.46} 1-0

[Event "MPL 41st IND-ch Teams 2022"]
[Site "Jalgaon"]
[Date "2022.04.12"]
[Round "8.8"]
[White "Harsh, Himanshu"]
[Black "Raja Rithvik R"]
[Result "0-1"]
[ECO "B90"]
[WhiteElo "1802"]
[BlackElo "2490"]
[Annotator "TA"]
[PlyCount "68"]
[EventDate "2022.04.08"]
[EventType "team-tourn"]
[EventCountry "IND"]
[SourceTitle "playchess.com"]
[Source "ChessBase"]
[SourceQuality "1"]
[TimeControl "5400+30"]

{[%evp 14,68,29,21,31,14,37,1,16,-9,-16,-10,0,-52,-57,-58,-66,-96,-81,-74,-69,-105,-122,-103,-75,-117,-18,-14,-26,-41,0,0,0,0,0,-8,-10,-616,-614,-596,-576,-1097,-1022,-1355,-1342,-1383,-1285,-3348,-3178,-29981,-29982,-29982,-29983,-29982,-29983,-29962,-4994]} 1. e4 c5 2. Nf3 d6 3. d4 cxd4 4. Nxd4 Nf6 5. Nc3 a6 6. h3 e6 7. g4 Be7 8. Bg2 Nfd7 {B81: Sicilian Scheveningen: Keres Attack.} 9. Be3 {[%cal Og4g5]} Nc6 10. O-O {10.h4 gains popularity.} O-O {The position is equal.} 11. Qe2 Nxd4 12. Bxd4 b5 13. a4 (13. e5 $11 d5 14. a3) 13... b4 $1 $15 14. Na2 {[#]} a5 $146 {...Ba6 is the strong threat.} ({Predecessor:} 14... e5 15. Be3 a5 16. Rfd1 Ba6 17. Qe1 Nb6 18. b3 Qb8 19. c3 bxc3 20. Nxc3 Nd7 21. Nd5 Bd8 22. b4 axb4 {½-½ (22) Agdelen,H (1992)-Ererdem,G (2152) Manavgat 2016}) 15. c3 Ba6 16. c4 Bf6 17. Rfd1 Bxd4 18. Rxd4 Nc5 {aiming for ...Nb3.} 19. Rad1 Qe8 ({Black should try} 19... Qc8 $17 20. e5 (20. Rxd6 Nb7 $17) 20... d5) 20. Rxd6 $11 Qxa4 21. Nc1 b3 22. Bf1 Qb4 23. Qe3 {[%cal Oc1b3]} a4 (23... Bxc4 $2 24. R6d4 Qb7 25. Rxc4 $18) 24. Nd3 Nxd3 25. Rb6 $2 {[%mdl 8192] [#] Now White is beyond hope.} (25. Qxd3 $11 Qc5 26. Rd7) 25... Qxb6 $3 $19 {[%mdl 512]} 26. Qxb6 Nxb2 27. Rc1 Rfb8 28. Qd6 {[#]} Nxc4 $1 {[%mdl 512]} 29. Bxc4 (29. Qd1 b2) 29... Bxc4 30. Rxc4 b2 31. Rb4 b1=Q+ {Black mates.} 32. Rxb1 Rxb1+ 33. Kg2 a3 34. Qc6 Rbb8 {Weighted Error Value: White=1.02/Black=0.12 (very precise)} 0-1

[Event "MPL 41st IND-ch Teams 2022"]
[Site "Jalgaon"]
[Date "2022.04.13"]
[Round "9.1"]
[White "Dony K V"]
[Black "Puranik, Abhimanyu"]
[Result "0-1"]
[ECO "A57"]
[WhiteElo "1633"]
[BlackElo "2618"]
[Annotator "TA"]
[PlyCount "102"]
[EventDate "2022.04.08"]
[EventType "team-tourn"]
[EventCountry "IND"]
[SourceTitle "playchess.com"]
[Source "ChessBase"]
[SourceQuality "1"]
[TimeControl "5400+30"]

{[%evp 21,102,0,0,0,10,14,11,-14,0,0,1,-13,-14,-54,-4,-40,-39,-101,-96,-96,-62,-306,-300,-300,-266,-228,-248,-277,-289,-278,-278,-306,-300,-289,-235,-329,-320,-422,-410,-860,-860,-831,-812,-884,-884,-878,-883,-883,-878,-878,-880,-873,-659,-868,-860,-853,-787,-852,-840,-790,-736,-888,-871,-1617,-1690,-6282,-1366,-6415,-6491,-6275,-4845,-29978,-29979,-29979,-29980,-29982,-29983,-29982,-29983,-29989,-29990,-29991,-29992]} 1. d4 {[%emt 0:00:02]} Nf6 {[%emt 0:01:45]} 2. c4 {[%emt 0:00:08]} c5 {[%emt 0:00:17]} 3. d5 {[%emt 0:00:08]} b5 {[%emt 0:00:04]} 4. cxb5 {[%emt 0:00:19]} a6 {[%emt 0:00:05]} 5. b6 {[%emt 0:00:20]} e6 {[%emt 0:00:19]} 6. Nc3 {[%emt 0:00:42]} Nxd5 {[%emt 0:02:42]} 7. Nxd5 {[%emt 0:00:11]} exd5 {[%emt 0:00:03]} 8. Qxd5 {[%emt 0:00:12]} Nc6 {[%emt 0:00:04]} 9. Nf3 {[%emt 0:01:38]} Be7 {[%emt 0:00:24]} 10. g3 {[%emt 0:07:36]} O-O {[%emt 0:05:28]} 11. Bg2 {[%emt 0:00:07]} Rb8 {[%emt 0:04:03][%cal Oc6d4]} 12. O-O {[%emt 0:00:24] A57: Benko/Volga Gambit.} Rxb6 {[%emt 0:00:19]} 13. b3 {[%emt 0:04:22] [#]} Bb7 $146 {[%emt 0:05:26]} ({Predecessor:} 13... Nb4 14. Qf5 d5 15. Qb1 Re8 16. Bb2 Be6 17. e3 Qc8 18. Bc3 Bf5 19. Qb2 Nd3 {0-1 (32) Flores Linan,J (1859)-Picanol Alemany,A (2308) Barcelona 2015}) 14. Qf5 {[%emt 0:09:04] The position is equal.} Bf6 {[%emt 0:06:54]} 15. Bg5 {[%emt 0:05:43]} Bxg5 {[%emt 0:00:56]} 16. Nxg5 {[%emt 0:00:35][%csl Gg5][%cal Rf5h7] [#]} g6 {[%emt 0:00:10]} 17. Qg4 {[%emt 0:07:49]} ({Don't play} 17. Qxc5 Rb5 18. Nxf7 Rxf7 $17) 17... h5 {[%emt 0:02:34]} (17... Rb4 $15 18. f4 h6) 18. Qh4 {[%emt 0:05:10]} Nd4 {[%emt 0:06:47]} 19. e3 {[%emt 0:03:01]} ({Better is} 19. Rae1 $15) 19... Ne2+ $17 {[%emt 0:08:36]} 20. Kh1 {[%emt 0:00:07]} Rb4 {[%emt 0:00:18]} 21. Bxb7 $2 {[%emt 0:10:03] This costs White the game.} Rxh4 $19 {[%emt 0:01:43]} 22. gxh4 {[%emt 0:00:08]} Qb6 {[%emt 0:02:46]} 23. Bg2 {[%emt 0:06:06]} Nc3 {[%emt 0:01:28] Prevents Rad1.} 24. Ne4 {[%emt 0:05:15]} Nxe4 {[%emt 0:00:30]} 25. Bxe4 {[%emt 0:00:02]} Qe6 {[%emt 0:00:54]} 26. Bg2 {[%emt 0:01:23]} d5 {[%emt 0:02:50]} 27. Rfd1 {[%emt 0:01:06]} Rd8 {[%emt 0:00:19]} 28. Rac1 {[%emt 0:00:32]} d4 {[%emt 0:00:30]} 29. Rxc5 {[%emt 0:04:33]} Qe7 {[%emt 0:07:39]} 30. Rc4 {[%emt 0:02:31]} (30. Rcc1 $142 Qxh4 31. Kg1) 30... dxe3 {[%emt 0:00:29][%mdl 64] [#] Discovered Attack} 31. Re1 {[%emt 0:06:24]} e2 {[%emt 0:00:10] ( -> ...Rd1)} 32. Bf3 {[%emt 0:03:14]} Rd1 {[%emt 0:00:21]} 33. Rxd1 {[%emt 0:00:07]} exd1=Q+ {[%emt 0:00:07]} 34. Bxd1 {[%emt 0:00:08][%mdl 4096] Endgame KQ-KRB} Qe1+ {[%emt 0:00:03]} 35. Kg2 {[%emt 0:00:07]} Qxd1 {[%emt 0:00:03] KQ-KR} 36. Ra4 {[%emt 0:00:08]} Qd5+ {[%emt 0:00:13]} 37. Kg3 {[%emt 0:01:48]} Qd6+ {[%emt 0:00:08]} 38. Kg2 {[%emt 0:01:03]} Kg7 {[%emt 0:00:06]} 39. Rc4 {[%emt 0:01:03]} Kf6 {[%emt 0:00:05]} 40. Ra4 {[%emt 0:00:10]} Ke5 {[%emt 0:00:19] And now ...f5 would win.} 41. Rc4 {[%emt 0:01:09]} f5 {[%emt 0:00:14]} 42. f4+ {[%emt 0:02:30]} Kf6 {[%emt 0:00:52]} 43. Ra4 {[%emt 0:00:07]} Kg7 {[%emt 0:00:07] aiming for ...Qd2+.} 44. Kg3 {[%emt 0:01:16]} Qd3+ {[%emt 0:00:11]} 45. Kf2 {[%emt 0:02:54]} Qh3 {[%emt 0:00:08][%csl LRh2,LRh4]} 46. Rxa6 {[%emt 0:00:20]} Qxh2+ {[%emt 0:00:05] Black mates.} 47. Ke3 {[%emt 0:02:01]} Qxh4 {[%emt 0:00:17]} 48. Kd4 {[%emt 0:00:52]} Qxf4+ {[%emt 0:00:08]} 49. Kc5 {[%emt 0:00:19]} h4 {[%emt 0:00:05][%cal Bh5h4,Bh4h3][%mdl 32]} 50. b4 {[%emt 0:00:07]} h3 {[%emt 0:00:08]} 51. Ra7+ {[%emt 0:00:18]} Kh6 {[%emt 0:00:09] Weighted Error Value: White=0.71/Black=0.07 (flawless)} 0-1

[Event "MPL 41st IND-ch Teams 2022"]
[Site "Jalgaon"]
[Date "2022.04.13"]
[Round "9.2"]
[White "Harsha Bharathakoti"]
[Black "Jithin K"]
[Result "1-0"]
[ECO "D42"]
[WhiteElo "2499"]
[BlackElo "1597"]
[Annotator "TA"]
[PlyCount "65"]
[EventDate "2022.04.08"]
[EventType "team-tourn"]
[EventCountry "IND"]
[SourceTitle "playchess.com"]
[Source "ChessBase"]
[SourceQuality "1"]
[TimeControl "5400+30"]

{[%evp 14,65,18,14,38,28,43,46,56,50,153,144,220,202,186,179,223,210,482,421,591,585,565,571,573,209,200,215,212,177,271,237,268,20,81,70,70,74,91,0,300,279,254,273,1097,1097,1097,1097,1096,1077,1076,1019,29997,29998]} 1. Nf3 Nf6 2. c4 c5 3. Nc3 Nc6 4. e3 e6 5. d4 d5 6. cxd5 Nxd5 7. Bd3 cxd4 8. exd4 Bb4 {B14: Caro-Kann: Panov-Botvinnik Attack with 5...e6 and 5...g6.} 9. O-O Nxc3 10. bxc3 Bxc3 {White is slightly better.} 11. Rb1 {[%cal Ba1b1,Bb1b5,Bb5c5][%mdl 32]} Qa5 (11... a5 $14) 12. Rb5 $16 {[#]} Qxa2 $146 (12... Qd8 $16) ({Predecessor:} 12... Qc7 13. Qc2 Ba5 14. Ba3 a6 15. Rg5 g6 16. d5 exd5 17. Rxd5 Ne7 18. Rc5 Nc6 {1-0 (41) Mircov,N (1767)-Nelson,O (1955) Douglas 2017}) 13. Rc5 Bb4 14. Bc4 $1 Qb1 15. Rg5 {And now Qe2 would win.} a5 $2 (15... Be7) 16. Qe2 $18 h6 (16... Bc3 $142 17. d5 Qb6 18. dxc6 bxc6) 17. Rxg7 Qf5 18. d5 Kf8 19. Qb2 $2 (19. Bb2 exd5 20. Nh4 $1) 19... exd5 {[#]} 20. Rg3 $1 Rh7 21. Bb3 {[%mdl 1024] White has strong compensation.} Qh5 (21... Qe6 $142) 22. Rd1 Ne7 {[#]} 23. Qc2 $2 (23. Rd4 $1 $18 {[%cal Rd4h4]} Nf5 24. Bc2 (24. Rxd5 Be6 $16) 24... Nxd4 25. Qxd4) 23... Bf5 (23... Rg7 $1 $11 {keeps the balance.}) 24. Qc7 $36 {[%mdl 2048] Black is under pressure.} Rc8 25. Qxb7 {Threatens to win with Bb2. 0x0.0017ad110bf2dp-1022s more active pieces.} Bd6 {[#] aiming for ...Rb8.} 26. Ba4 ({Much worse is} 26. Re1 $6 Be4 $11) (26. Qa7 $1 $16) 26... Rxc1 $2 {[%mdl 8192]} 27. Rxc1 $18 {[%cal Bd1c1,Bc1c7,Bc7e7,Be7e8,Be8g8][%mdl 32] Threatening mate with Qa8+. Dancing on a razor blade.} Bxg3 28. hxg3 ({Don't play} 28. fxg3 $6 Qg6 $16) 28... Be4 $2 (28... Qg6 29. Rc5 Qf6) 29. Rc7 Bxf3 30. Rxe7 {White threatens Re8+ and mate.} Be4 31. Re8+ Kg7 32. Qb2+ Kg6 33. Rg8+ {Weighted Error Value: White=0.46/Black=0.92} 1-0